[Event "1st 4NCL International Open"]
[Site "Telford"]
[Date "2018.11.02"]
[Round "2"]
[White "Jamieson, Ian"]
[Black "Mihalik, Agoston"]
[Result "0-1"]
[ECO "A03"]
[WhiteElo "1947"]
[BlackElo "2223"]
[Annotator "ChessBase"]
[PlyCount "82"]
[EventDate "2018.10.31"]
[EventType "swiss"]
[EventCountry "GBR"]
[SourceTitle "playchess.com"]
[Source "ChessBase"]
[SourceQuality "1"]
[TimeControl "5400+30"]

1. f4 {[%emt 0:00:00]} d5 {[%emt 0:05:38]} 2. Nf3 {[%emt 0:01:27]} c5 {[%emt 0:00:14]} 3. e3 {[%emt 0:00:51]} Nf6 {[%emt 0:01:05]} 4. d3 {[%emt 0:01:37]} g6 {[%emt 0:01:12]} 5. Be2 {[%emt 0:00:10]} Bg7 {[%emt 0:00:05]} 6. O-O {[%emt 0:00:11]} O-O {[%emt 0:00:04]} 7. Nc3 {[%emt 0:00:16]} d4 {[%emt 0:07:40]} 8. Ne4 {[%emt 0:00:11]} Qb6 {[%emt 0:12:07]} 9. Nxf6+ {[%emt 0:03:35]} Bxf6 {[%emt 0:00:57]} 10. e4 {[%emt 0:00:19]} Nc6 {[%emt 0:00:45]} 11. Qe1 {[%emt 0:07:48]} c4 {[%emt 0:13:17]} 12. f5 {[%emt 0:07:49]} Nb4 {[%emt 0:09:41]} 13. Bh6 {[%emt 0:07:06]} Bg7 {[%emt 0:06:26]} 14. Qh4 {[%emt 0:06:20]} Bxh6 {[%emt 0:21:51]} 15. Qxh6 {[%emt 0:00:18]} Qf6 {[%emt 0:00:07]} 16. e5 {[%emt 0:05:13]} Qg7 {[%emt 0:00:52]} 17. Qxg7+ {[%emt 0:00:21]} Kxg7 {[%emt 0:00:03]} 18. Nxd4 {[%emt 0:00:24]} Rd8 {[%emt 0:01:38]} 19. f6+ {[%emt 0:07:32]} exf6 {[%emt 0:01:42]} 20. exf6+ {[%emt 0:00:10]} Kg8 {[%emt 0:00:25]} 21. c3 {[%emt 0:00:27]} cxd3 {[%emt 0:00:52]} 22. Bf3 {[%emt 0:00:26]} Nc2 {[%emt 0:03:34]} 23. Nxc2 {[%emt 0:01:40]} dxc2 {[%emt 0:00:04]} 24. Be4 {[%emt 0:00:23]} Bf5 {[%emt 0:00:39]} 25. Rxf5 {[%emt 0:03:57]} gxf5 {[%emt 0:00:21]} 26. Bxc2 {[%emt 0:00:08]} Rd2 {[%emt 0:03:23]} 27. Bxf5 {[%emt 0:01:34]} Re8 {[%emt 0:00:15]} 28. Bg4 {[%emt 0:01:29]} Rxb2 {[%emt 0:00:41]} 29. h3 {[%emt 0:02:24]} Rb6 {[%emt 0:00:55]} 30. Bf3 {[%emt 0:04:27]} Rc8 {[%emt 0:02:35]} 31. Rc1 {[%emt 0:01:01]} Rc7 {[%emt 0:00:24]} 32. c4 {[%emt 0:00:39]} Rxf6 {[%emt 0:00:12]} 33. a4 {[%emt 0:00:58]} Ra6 {[%emt 0:01:16]} 34. Bd1 {[%emt 0:00:17]} Rac6 {[%emt 0:00:23]} 35. Be2 {[%emt 0:00:24]} b6 {[%emt 0:01:04]} 36. Rc3 {[%emt 0:05:59]} Rd6 {[%emt 0:00:28]} 37. Rg3+ {[%emt 0:01:04]} Kf8 {[%emt 0:00:05]} 38. Rg4 {[%emt 0:00:56]} Rd2 {[%emt 0:00:21]} 39. Bf3 {[%emt 0:01:47]} Ra2 {[%emt 0:00:13]} 40. Bd5 {[%emt 0:00:12]} Rxa4 {[%emt 0:00:27]} 41. Rh4 {[%emt 0:00:21]} b5 {[%emt 0:00:43]} 0-1

[Event "1st 4NCL International Open"]
[Site "Telford"]
[Date "2018.11.02"]
[Round "2"]
[White "Gibson, Christopher A"]
[Black "Willow, Jonah B"]
[Result "0-1"]
[ECO "B47"]
[WhiteElo "1924"]
[BlackElo "2271"]
[Annotator "ChessBase"]
[PlyCount "72"]
[EventDate "2018.10.31"]
[EventType "swiss"]
[EventCountry "GBR"]
[SourceTitle "playchess.com"]
[Source "ChessBase"]
[SourceQuality "1"]
[TimeControl "5400+30"]

1. e4 {[%emt 0:00:00]} c5 {[%emt 0:00:00]} 2. Nf3 {[%emt 0:00:00]} e6 {[%emt 0:00:00]} 3. d4 {[%emt 0:00:00]} cxd4 {[%emt 0:00:00]} 4. Nxd4 {[%emt 0:00:00]} Nc6 {[%emt 0:00:00]} 5. Nc3 {[%emt 0:00:01]} Qc7 {[%emt 0:00:02]} 6. g3 {[%emt 0:00:12]} a6 {[%emt 0:00:04]} 7. Bg2 {[%emt 0:00:08]} Nf6 {[%emt 0:00:05]} 8. O-O {[%emt 0:00:10]} h5 {[%emt 0:00:31]} 9. h3 {[%emt 0:12:12]} Bc5 {[%emt 0:00:06]} 10. Nb3 {[%emt 0:05:32]} Ba7 {[%emt 0:01:58]} 11. Bf4 {[%emt 0:00:24]} Ne5 {[%emt 0:00:56]} 12. a4 {[%emt 0:06:02]} d6 {[%emt 0:00:49]} 13. Nc1 {[%emt 0:03:57]} Bd7 {[%emt 0:02:53]} 14. Nd3 {[%emt 0:00:22]} Bc6 {[%emt 0:02:32]} 15. Qe2 {[%emt 0:03:03]} Nxd3 {[%emt 0:12:54]} 16. cxd3 {[%emt 0:03:23]} e5 {[%emt 0:01:32]} 17. Be3 {[%emt 0:04:49]} Bxe3 {[%emt 0:03:29]} 18. Qxe3 {[%emt 0:03:42]} O-O {[%emt 0:00:34]} 19. d4 {[%emt 0:12:28]} Qb6 {[%emt 0:00:59]} 20. Nd5 {[%emt 0:10:38]} Bxd5 {[%emt 0:00:40]} 21. exd5 {[%emt 0:00:12]} Rfe8 {[%emt 0:01:42]} 22. dxe5 {[%emt 0:06:44]} Qxe3 {[%emt 0:00:32]} 23. fxe3 {[%emt 0:00:06]} Rxe5 {[%emt 0:00:06]} 24. Ra3 {[%emt 0:05:43]} Rae8 {[%emt 0:02:27]} 25. Rb3 {[%emt 0:03:02]} R8e7 {[%emt 0:01:01]} 26. Rf4 {[%emt 0:02:56]} Nxd5 {[%emt 0:04:08]} 27. Rd4 {[%emt 0:03:16]} Nxe3 {[%emt 0:01:44]} 28. Bxb7 {[%emt 0:01:34]} Nf5 {[%emt 0:01:34]} 29. Rdd3 {[%emt 0:03:30]} Re1+ {[%emt 0:02:33]} 30. Kf2 {[%emt 0:00:31]} h4 {[%emt 0:00:24]} 31. gxh4 {[%emt 0:01:46]} R7e2+ {[%emt 0:03:47]} 32. Kf3 {[%emt 0:00:13]} Nxh4+ {[%emt 0:00:07]} 33. Kg4 {[%emt 0:01:13]} Ng6 {[%emt 0:01:57]} 34. Rxd6 {[%emt 0:01:17]} Ne5+ {[%emt 0:10:09]} 35. Kh4 {[%emt 0:01:27]} f6 {[%emt 0:06:47]} 36. Kh5 {[%emt 0:02:56]} Rg1 {[%emt 0:01:34]} 0-1

[Event "1st 4NCL International Open"]
[Site "Telford"]
[Date "2018.11.02"]
[Round "2"]
[White "Paul, Nathanael"]
[Black "Britton, Richard L"]
[Result "1-0"]
[ECO "B20"]
[WhiteElo "1890"]
[BlackElo "2204"]
[Annotator "ChessBase"]
[PlyCount "57"]
[EventDate "2018.10.31"]
[EventType "swiss"]
[EventCountry "GBR"]
[SourceTitle "playchess.com"]
[Source "ChessBase"]
[SourceQuality "1"]
[TimeControl "5400+30"]

1. e4 {[%emt 0:00:00]} c5 {[%emt 0:08:10]} 2. a3 {[%emt 0:00:00]} b6 {[%emt 0:13:26]} 3. b4 {[%emt 0:01:02]} Bb7 {[%emt 0:00:07]} 4. Nc3 {[%emt 0:02:38]} e6 {[%emt 0:00:10]} 5. Bb2 {[%emt 0:01:36]} d6 {[%emt 0:01:00]} 6. Nf3 {[%emt 0:03:56]} Nd7 {[%emt 0:00:06]} 7. Bc4 {[%emt 0:12:37]} Ngf6 {[%emt 0:04:24]} 8. Qe2 {[%emt 0:01:30]} Be7 {[%emt 0:00:11]} 9. Ba6 {[%emt 0:09:41]} Qc8 {[%emt 0:01:48]} 10. Bxb7 {[%emt 0:00:33]} Qxb7 {[%emt 0:00:06]} 11. O-O {[%emt 0:10:09]} O-O {[%emt 0:00:48]} 12. d3 {[%emt 0:08:17]} Rfe8 {[%emt 0:12:38]} 13. bxc5 {[%emt 0:14:26]} Nxc5 {[%emt 0:00:13]} 14. e5 {[%emt 0:01:07]} dxe5 {[%emt 0:00:39]} 15. Nxe5 {[%emt 0:00:37]} Rac8 {[%emt 0:00:17]} 16. Rad1 {[%emt 0:01:56]} Qa6 {[%emt 0:01:44]} 17. Nb1 {[%emt 0:02:40]} Red8 {[%emt 0:14:45]} 18. c4 {[%emt 0:01:12]} Na4 {[%emt 0:04:49]} 19. Ba1 {[%emt 0:00:13]} b5 {[%emt 0:00:13]} 20. Rc1 {[%emt 0:03:34]} Qb7 {[%emt 0:02:14]} 21. Rfe1 {[%emt 0:00:43]} a6 {[%emt 0:00:35]} 22. Kh1 {[%emt 0:06:17]} Nc5 {[%emt 0:03:41]} 23. Nd2 {[%emt 0:01:25]} Ncd7 {[%emt 0:00:16]} 24. Nxf7 {[%emt 0:01:25]} Rf8 {[%emt 0:02:43]} 25. Ng5 {[%emt 0:01:53]} Bxa3 {[%emt 0:00:05]} 26. Qxe6+ {[%emt 0:02:30]} Kh8 {[%emt 0:00:05]} 27. Nf7+ {[%emt 0:01:15]} Rxf7 {[%emt 0:00:12]} 28. Qxf7 {[%emt 0:00:08]} Bxc1 {[%emt 0:00:11]} 29. Re7 {[%emt 0:01:33]} 1-0

[Event "1st 4NCL International Open"]
[Site "Telford"]
[Date "2018.11.02"]
[Round "2"]
[White "Guha, Chirag"]
[Black "Mason, Donald J"]
[Result "1-0"]
[ECO "A70"]
[WhiteElo "1887"]
[BlackElo "2165"]
[Annotator "ChessBase"]
[PlyCount "61"]
[EventDate "2018.10.31"]
[EventType "swiss"]
[EventCountry "GBR"]
[SourceTitle "playchess.com"]
[Source "ChessBase"]
[SourceQuality "1"]
[TimeControl "5400+30"]

1. d4 {[%emt 0:00:23]} Nf6 {[%emt 0:00:00]} 2. c4 {[%emt 0:00:14]} c5 {[%emt 0:00:00]} 3. d5 {[%emt 0:00:40]} e6 {[%emt 0:00:00]} 4. Nc3 {[%emt 0:00:50]} exd5 {[%emt 0:00:04]} 5. cxd5 {[%emt 0:00:05]} d6 {[%emt 0:00:05]} 6. e4 {[%emt 0:01:23]} g6 {[%emt 0:00:08]} 7. Nf3 {[%emt 0:01:34]} Bg7 {[%emt 0:02:09]} 8. h3 {[%emt 0:03:39]} O-O {[%emt 0:03:52]} 9. Bd3 {[%emt 0:00:34]} b5 {[%emt 0:04:12]} 10. O-O {[%emt 0:20:15]} b4 {[%emt 0:12:44]} 11. Nb1 {[%emt 0:03:23]} Nbd7 {[%emt 0:13:13]} 12. Bf4 {[%emt 0:08:15]} Nb6 {[%emt 0:02:58]} 13. Qc2 {[%emt 0:05:13]} c4 {[%emt 0:18:44]} 14. Bxc4 {[%emt 0:03:39]} Nxe4 {[%emt 0:19:59]} 15. Qxe4 {[%emt 0:04:08]} Re8 {[%emt 0:01:06]} 16. Qc2 {[%emt 0:06:24]} Bf5 {[%emt 0:10:22]} 17. Qc1 {[%emt 0:06:17]} Rc8 {[%emt 0:02:56]} 18. Nbd2 {[%emt 0:05:21]} Bd3 {[%emt 0:01:34]} 19. Bxd3 {[%emt 0:03:38]} Rxc1 {[%emt 0:00:17]} 20. Raxc1 {[%emt 0:00:06]} Bxb2 {[%emt 0:00:59]} 21. Rc6 {[%emt 0:02:42]} Be5 {[%emt 0:01:24]} 22. Bxe5 {[%emt 0:01:23]} dxe5 {[%emt 0:00:01]} 23. Ne4 {[%emt 0:01:17]} Kg7 {[%emt 0:02:01]} 24. d6 {[%emt 0:05:21]} Nd5 {[%emt 0:01:32]} 25. Bc4 {[%emt 0:01:47]} Nc3 {[%emt 0:01:35]} 26. Nc5 {[%emt 0:02:28]} Qa8 {[%emt 0:00:29]} 27. Rc7 {[%emt 0:01:32]} Kh6 {[%emt 0:00:26]} 28. Bxf7 {[%emt 0:01:13]} Nb5 {[%emt 0:00:31]} 29. Bxe8 {[%emt 0:04:32]} Nxc7 {[%emt 0:00:08]} 30. dxc7 {[%emt 0:00:22]} Qxe8 {[%emt 0:00:03]} 31. Rc1 {[%emt 0:00:13]} 1-0

[Event "1st 4NCL International Open"]
[Site "Telford"]
[Date "2018.11.02"]
[Round "2"]
[White "Jukes, Sam"]
[Black "Stepanyan, Henrik"]
[Result "0-1"]
[ECO "C54"]
[WhiteElo "1863"]
[BlackElo "2158"]
[Annotator "ChessBase"]
[PlyCount "98"]
[EventDate "2018.10.31"]
[EventType "swiss"]
[EventCountry "GBR"]
[SourceTitle "playchess.com"]
[Source "ChessBase"]
[SourceQuality "1"]
[TimeControl "5400+30"]

1. e4 {[%emt 0:00:00]} e5 {[%emt 0:00:00]} 2. Nf3 {[%emt 0:00:00]} Nc6 {[%emt 0:00:00]} 3. Bc4 {[%emt 0:00:00]} Bc5 {[%emt 0:00:44]} 4. c3 {[%emt 0:00:25]} Nf6 {[%emt 0:01:18]} 5. d3 {[%emt 0:00:26]} O-O {[%emt 0:00:46]} 6. Bb3 {[%emt 0:01:22]} d5 {[%emt 0:02:25]} 7. exd5 {[%emt 0:03:52]} Nxd5 {[%emt 0:00:21]} 8. O-O {[%emt 0:02:29]} Bg4 {[%emt 0:02:39]} 9. h3 {[%emt 0:05:29]} Bh5 {[%emt 0:00:36]} 10. g4 {[%emt 0:03:09]} Bg6 {[%emt 0:01:09]} 11. Nxe5 {[%emt 0:07:23]} Nxe5 {[%emt 0:05:52]} 12. d4 {[%emt 0:01:03]} Be4 {[%emt 0:19:46]} 13. f3 {[%emt 0:18:36]} Qh4 {[%emt 0:20:41]} 14. fxe4 {[%emt 0:23:59]} Qg3+ {[%emt 0:00:06]} 15. Kh1 {[%emt 0:00:11]} Qxh3+ {[%emt 0:00:09]} 16. Kg1 {[%emt 0:00:09]} Ne3 {[%emt 0:15:20]} 17. Bxe3 {[%emt 0:04:38]} Qxe3+ {[%emt 0:00:10]} 18. Rf2 {[%emt 0:07:39]} Nd3 {[%emt 0:10:36]} 19. Qd2 {[%emt 0:00:29]} Qxf2+ {[%emt 0:00:58]} 20. Qxf2 {[%emt 0:00:05]} Nxf2 {[%emt 0:00:03]} 21. Kxf2 {[%emt 0:00:08]} Be7 {[%emt 0:01:40]} 22. Nd2 {[%emt 0:00:20]} g6 {[%emt 0:00:37]} 23. Nc4 {[%emt 0:02:08]} a5 {[%emt 0:01:31]} 24. Ne5 {[%emt 0:02:01]} Kg7 {[%emt 0:00:50]} 25. Ke3 {[%emt 0:00:49]} f6 {[%emt 0:02:05]} 26. Nd3 {[%emt 0:01:17]} Bd6 {[%emt 0:03:52]} 27. Rf1 {[%emt 0:01:37]} Rae8 {[%emt 0:00:22]} 28. c4 {[%emt 0:02:09]} c5 {[%emt 0:01:25]} 29. dxc5 {[%emt 0:00:21]} Be5 {[%emt 0:00:47]} 30. Ba4 {[%emt 0:00:56]} Rc8 {[%emt 0:02:41]} 31. g5 {[%emt 0:02:14]} Bb8 {[%emt 0:01:07]} 32. c6 {[%emt 0:01:59]} bxc6 {[%emt 0:00:02]} 33. b4 {[%emt 0:01:32]} axb4 {[%emt 0:01:45]} 34. gxf6+ {[%emt 0:00:49]} Rxf6 {[%emt 0:00:10]} 35. Rxf6 {[%emt 0:00:20]} Kxf6 {[%emt 0:00:40]} 36. Nxb4 {[%emt 0:00:03]} c5 {[%emt 0:00:37]} 37. Nd5+ {[%emt 0:00:33]} Kg5 {[%emt 0:00:19]} 38. Bd7 {[%emt 0:02:48]} Rd8 {[%emt 0:00:57]} 39. Be6 {[%emt 0:01:55]} h5 {[%emt 0:01:08]} 40. a4 {[%emt 0:01:09]} h4 {[%emt 0:00:02]} 41. a5 {[%emt 0:01:23]} Be5 {[%emt 0:00:01]} 42. Nb6 {[%emt 0:00:55]} Bc7 {[%emt 0:00:27]} 43. Bd5 {[%emt 0:00:29]} h3 {[%emt 0:01:20]} 44. Kf3 {[%emt 0:00:17]} h2 {[%emt 0:02:18]} 45. Kg2 {[%emt 0:00:11]} Rh8 {[%emt 0:00:28]} 46. Kh1 {[%emt 0:00:16]} Rf8 {[%emt 0:00:41]} 47. e5 {[%emt 0:00:41]} Bxe5 {[%emt 0:00:22]} 48. Kg2 {[%emt 0:00:05]} Rh8 {[%emt 0:00:35]} 49. Kh1 {[%emt 0:00:10]} Bc7 {[%emt 0:01:27]} 0-1

[Event "1st 4NCL International Open"]
[Site "Telford"]
[Date "2018.11.02"]
[Round "3"]
[White "Rahul Srivatshav P"]
[Black "Richardson, John R"]
[Result "0-1"]
[ECO "E46"]
[WhiteElo "2395"]
[BlackElo "2213"]
[Annotator "ChessBase"]
[PlyCount "92"]
[EventDate "2018.10.31"]
[EventType "swiss"]
[EventCountry "GBR"]
[SourceTitle "playchess.com"]
[Source "ChessBase"]
[SourceQuality "1"]
[TimeControl "5400+30"]

1. d4 {[%emt 0:00:00]} Nf6 {[%emt 0:00:18]} 2. c4 {[%emt 0:00:00]} e6 {[%emt 0:00:07]} 3. Nc3 {[%emt 0:00:01]} Bb4 {[%emt 0:00:01]} 4. e3 {[%emt 0:00:07]} O-O {[%emt 0:00:06]} 5. Nge2 {[%emt 0:00:03]} d5 {[%emt 0:00:03]} 6. a3 {[%emt 0:00:04]} Be7 {[%emt 0:00:03]} 7. cxd5 {[%emt 0:00:43]} exd5 {[%emt 0:00:06]} 8. Nf4 {[%emt 0:00:21]} c6 {[%emt 0:00:04]} 9. Bd3 {[%emt 0:00:04]} Bd6 {[%emt 0:00:15]} 10. O-O {[%emt 0:00:08]} a5 {[%emt 0:00:03]} 11. Bd2 {[%emt 0:01:01]} Na6 {[%emt 0:00:04]} 12. f3 {[%emt 0:00:04]} Nc7 {[%emt 0:00:20]} 13. Qe1 {[%emt 0:00:48]} Ne6 {[%emt 0:00:21]} 14. Nfe2 {[%emt 0:00:17]} Bc7 {[%emt 0:17:16]} 15. Qf2 {[%emt 0:09:03]} b6 {[%emt 0:01:59]} 16. g4 {[%emt 0:04:11]} Ba6 {[%emt 0:03:01]} 17. Bc2 {[%emt 0:03:43]} c5 {[%emt 0:00:45]} 18. Qg2 {[%emt 0:05:23]} b5 {[%emt 0:11:14]} 19. g5 {[%emt 0:10:55]} Ne8 {[%emt 0:03:05]} 20. f4 {[%emt 0:07:14]} b4 {[%emt 0:00:04]} 21. axb4 {[%emt 0:00:23]} cxb4 {[%emt 0:05:41]} 22. Nxd5 {[%emt 0:02:07]} Bxe2 {[%emt 0:01:49]} 23. Nxc7 {[%emt 0:00:25]} Bxf1 {[%emt 0:01:49]} 24. Qxa8 {[%emt 0:00:59]} Qxc7 {[%emt 0:02:31]} 25. Qe4 {[%emt 0:00:06]} g6 {[%emt 0:00:21]} 26. Rxf1 {[%emt 0:00:09]} Nd6 {[%emt 0:00:14]} 27. Qd3 {[%emt 0:00:07]} Nf5 {[%emt 0:00:56]} 28. Bd1 {[%emt 0:05:52]} Qb6 {[%emt 0:08:43]} 29. Bg4 {[%emt 0:02:00]} Nd6 {[%emt 0:05:27]} 30. Ra1 {[%emt 0:05:16]} Re8 {[%emt 0:00:48]} 31. Kf2 {[%emt 0:01:40]} h6 {[%emt 0:05:49]} 32. h4 {[%emt 0:07:40]} hxg5 {[%emt 0:05:44]} 33. hxg5 {[%emt 0:00:15]} Nxg5 {[%emt 0:00:38]} 34. fxg5 {[%emt 0:02:09]} Ne4+ {[%emt 0:00:03]} 35. Kg2 {[%emt 0:04:06]} Qd8 {[%emt 0:03:38]} 36. Rf1 {[%emt 0:12:52]} Qxg5 {[%emt 0:00:13]} 37. Rf4 {[%emt 0:00:04]} f5 {[%emt 0:02:16]} 38. Qb5 {[%emt 0:04:14]} Re7 {[%emt 0:08:27]} 39. Be1 {[%emt 0:04:01]} Nf6 {[%emt 0:00:23]} 40. Qb8+ {[%emt 0:05:24]} Kg7 {[%emt 0:01:00]} 41. Kf3 {[%emt 0:02:52]} Nxg4 {[%emt 0:00:30]} 42. e4 {[%emt 0:00:03]} Qh5 {[%emt 0:03:24]} 43. Bg3 {[%emt 0:00:56]} Qh1+ {[%emt 0:01:26]} 44. Ke2 {[%emt 0:00:09]} Qg2+ {[%emt 0:02:01]} 45. Kd3 {[%emt 0:00:18]} Qxg3+ {[%emt 0:00:53]} 46. Kc4 {[%emt 0:00:01]} Ne5+ {[%emt 0:00:56]} 0-1

[Event "1st 4NCL International Open"]
[Site "Telford"]
[Date "2018.11.02"]
[Round "3"]
[White "Gourlay, Iain"]
[Black "Ratnesan, Ranesh"]
[Result "1/2-1/2"]
[ECO "A26"]
[WhiteElo "2358"]
[BlackElo "1994"]
[Annotator "ChessBase"]
[PlyCount "108"]
[EventDate "2018.10.31"]
[EventType "swiss"]
[EventCountry "GBR"]
[SourceTitle "playchess.com"]
[Source "ChessBase"]
[SourceQuality "1"]
[TimeControl "5400+30"]

1. Nf3 {[%emt 0:00:00]} Nf6 {[%emt 0:00:00]} 2. g3 {[%emt 0:00:49]} g6 {[%emt 0:00:00]} 3. c4 {[%emt 0:00:43]} Bg7 {[%emt 0:00:21]} 4. Bg2 {[%emt 0:00:16]} O-O {[%emt 0:00:21]} 5. O-O {[%emt 0:00:33]} d6 {[%emt 0:00:14]} 6. Nc3 {[%emt 0:00:35]} e5 {[%emt 0:00:56]} 7. d3 {[%emt 0:01:31]} Nc6 {[%emt 0:00:31]} 8. Rb1 {[%emt 0:00:35]} a5 {[%emt 0:00:18]} 9. a3 {[%emt 0:00:43]} Re8 {[%emt 0:02:44]} 10. e4 {[%emt 0:12:02]} Bg4 {[%emt 0:05:29]} 11. h3 {[%emt 0:09:11]} Bxf3 {[%emt 0:00:24]} 12. Bxf3 {[%emt 0:00:06]} Nd4 {[%emt 0:11:58]} 13. Bg2 {[%emt 0:04:21]} Nd7 {[%emt 0:04:17]} 14. Be3 {[%emt 0:06:09]} c6 {[%emt 0:03:13]} 15. h4 {[%emt 0:10:02]} Nc5 {[%emt 0:04:22]} 16. b3 {[%emt 0:16:48]} Nce6 {[%emt 0:02:13]} 17. Bh3 {[%emt 0:03:39]} f5 {[%emt 0:02:52]} 18. exf5 {[%emt 0:07:40]} gxf5 {[%emt 0:03:53]} 19. Qh5 {[%emt 0:08:44]} Qf6 {[%emt 0:02:19]} 20. Kh1 {[%emt 0:04:54]} Qg6 {[%emt 0:03:34]} 21. Qxg6 {[%emt 0:02:22]} hxg6 {[%emt 0:00:08]} 22. Rfc1 {[%emt 0:01:29]} Nc5 {[%emt 0:04:30]} 23. b4 {[%emt 0:05:58]} axb4 {[%emt 0:04:37]} 24. axb4 {[%emt 0:00:05]} Nxd3 {[%emt 0:00:32]} 25. Rd1 {[%emt 0:00:08]} e4 {[%emt 0:00:15]} 26. Bf1 {[%emt 0:01:01]} Nc2 {[%emt 0:00:24]} 27. Bxd3 {[%emt 0:01:21]} Nxe3 {[%emt 0:00:14]} 28. fxe3 {[%emt 0:00:24]} Bxc3 {[%emt 0:00:09]} 29. Bc2 {[%emt 0:00:59]} Be5 {[%emt 0:00:43]} 30. Bb3 {[%emt 0:00:35]} Kg7 {[%emt 0:01:05]} 31. Kg2 {[%emt 0:00:12]} Ra3 {[%emt 0:01:42]} 32. Kf2 {[%emt 0:00:25]} Rea8 {[%emt 0:00:46]} 33. Rd2 {[%emt 0:01:16]} Kf6 {[%emt 0:00:33]} 34. Rc2 {[%emt 0:00:25]} Ke7 {[%emt 0:00:36]} 35. b5 {[%emt 0:00:51]} g5 {[%emt 0:04:01]} 36. hxg5 {[%emt 0:00:25]} Rh8 {[%emt 0:00:28]} 37. Kg2 {[%emt 0:00:31]} Rg8 {[%emt 0:00:46]} 38. bxc6 {[%emt 0:00:35]} bxc6 {[%emt 0:00:07]} 39. Kh3 {[%emt 0:00:34]} Rxg5 {[%emt 0:00:16]} 40. Rg2 {[%emt 0:00:32]} Ra8 {[%emt 0:00:13]} 41. Kh2 {[%emt 0:00:18]} Rh8+ {[%emt 0:01:16]} 42. Kg1 {[%emt 0:00:04]} Rh3 {[%emt 0:00:41]} 43. Ba4 {[%emt 0:00:24]} Rhxg3 {[%emt 0:00:43]} 44. Rxg3 {[%emt 0:00:08]} Rxg3+ {[%emt 0:00:31]} 45. Kf2 {[%emt 0:00:06]} Rf3+ {[%emt 0:00:27]} 46. Ke2 {[%emt 0:00:05]} c5 {[%emt 0:00:32]} 47. Rb7+ {[%emt 0:00:36]} Kf6 {[%emt 0:00:24]} 48. Rb8 {[%emt 0:01:34]} Bg3 {[%emt 0:02:38]} 49. Bc6 {[%emt 0:00:47]} Rf2+ {[%emt 0:00:50]} 50. Kd1 {[%emt 0:00:06]} Kg5 {[%emt 0:00:43]} 51. Rg8+ {[%emt 0:00:32]} Kh4 {[%emt 0:00:15]} 52. Bd7 {[%emt 0:00:45]} Kh3 {[%emt 0:00:23]} 53. Rg5 {[%emt 0:00:42]} Kh4 {[%emt 0:08:33]} 54. Rxf5 {[%emt 0:00:24]} Rxf5 {[%emt 0:06:47]} 1/2-1/2

[Event "1st 4NCL International Open"]
[Site "Telford"]
[Date "2018.11.02"]
[Round "3"]
[White "Kulkarni, Rakesh"]
[Black "Paul, Nathanael"]
[Result "1/2-1/2"]
[ECO "B10"]
[WhiteElo "2297"]
[BlackElo "1890"]
[Annotator "ChessBase"]
[PlyCount "75"]
[EventDate "2018.10.31"]
[EventType "swiss"]
[EventCountry "GBR"]
[SourceTitle "playchess.com"]
[Source "ChessBase"]
[SourceQuality "1"]
[TimeControl "5400+30"]

1. c4 {[%emt 0:00:00]} c6 {[%emt 0:00:00]} 2. e4 {[%emt 0:00:00]} d5 {[%emt 0:00:00]} 3. exd5 {[%emt 0:00:00]} cxd5 {[%emt 0:00:00]} 4. cxd5 {[%emt 0:00:00]} Nf6 {[%emt 0:00:07]} 5. Qa4+ {[%emt 0:00:03]} Nbd7 {[%emt 0:03:54]} 6. Nc3 {[%emt 0:00:05]} g6 {[%emt 0:00:52]} 7. Nf3 {[%emt 0:00:05]} Bg7 {[%emt 0:00:17]} 8. Bc4 {[%emt 0:00:05]} O-O {[%emt 0:00:57]} 9. d3 {[%emt 0:00:02]} Nb6 {[%emt 0:05:33]} 10. Qb3 {[%emt 0:00:31]} e6 {[%emt 0:15:31]} 11. dxe6 {[%emt 0:01:56]} Bxe6 {[%emt 0:00:22]} 12. Bxe6 {[%emt 0:01:19]} Re8 {[%emt 0:00:10]} 13. O-O {[%emt 0:01:32]} Rxe6 {[%emt 0:00:28]} 14. d4 {[%emt 0:00:26]} Nfd5 {[%emt 0:03:06]} 15. Bg5 {[%emt 0:02:12]} f6 {[%emt 0:09:59]} 16. Bd2 {[%emt 0:01:45]} Qd7 {[%emt 0:00:23]} 17. a4 {[%emt 0:00:16]} Rc8 {[%emt 0:06:22]} 18. a5 {[%emt 0:04:42]} Nc4 {[%emt 0:01:10]} 19. Ra4 {[%emt 0:00:30]} Nxd2 {[%emt 0:07:27]} 20. Nxd2 {[%emt 0:00:27]} Nxc3 {[%emt 0:01:11]} 21. bxc3 {[%emt 0:00:06]} Rxc3 {[%emt 0:00:10]} 22. Qxc3 {[%emt 0:00:52]} Qxa4 {[%emt 0:00:06]} 23. Qc8+ {[%emt 0:00:31]} Re8 {[%emt 0:00:35]} 24. Qxb7 {[%emt 0:00:05]} Qxd4 {[%emt 0:02:46]} 25. Nb3 {[%emt 0:02:24]} Qc4 {[%emt 0:08:00]} 26. g3 {[%emt 0:00:51]} Qf7 {[%emt 0:03:50]} 27. a6 {[%emt 0:00:23]} Re7 {[%emt 0:03:45]} 28. Nc5 {[%emt 0:02:06]} Bf8 {[%emt 0:02:45]} 29. Rb1 {[%emt 0:09:35]} Qe8 {[%emt 0:07:30]} 30. Qd5+ {[%emt 0:01:01]} Kg7 {[%emt 0:00:16]} 31. Rb7 {[%emt 0:01:02]} Kh6 {[%emt 0:02:25]} 32. Nd7 {[%emt 0:01:37]} Re1+ {[%emt 0:09:05]} 33. Kg2 {[%emt 0:00:15]} Qe2 {[%emt 0:00:56]} 34. Nxf6 {[%emt 0:03:58]} Qf1+ {[%emt 0:04:01]} 35. Kf3 {[%emt 0:00:04]} Qe2+ {[%emt 0:01:29]} 36. Kg2 {[%emt 0:04:27]} Qf1+ {[%emt 0:00:31]} 37. Kf3 {[%emt 0:00:57]} Qe2+ {[%emt 0:00:10]} 38. Kg2 {[%emt 0:00:27]} 1/2-1/2